bitfinex/quotes_BTCUSD_20250519
["timestamp","ask_amount","ask_price","bid_price","bid_amount"]
[1747613762815,0.22548132,106470.0,106460.0,0.5004094]
[1747613763060,0.20669767,106470.0,106460.0,0.0631]
[1747613763721,0.20669767,106470.0,106440.0,0.0309]
[1747613763722,0.18788163,106450.0,106440.0,0.0309]
[1747613764163,0.28519103,106450.0,106440.0,0.0309]
[1747613764390,0.1972938,106440.0,106430.0,0.04065773]
[1747613764602,0.2946032,106440.0,106430.0,0.04065773]
[1747613764811,0.2946032,106440.0,106430.0,0.00975773]
[1747613765021,0.6346032,106440.0,106430.0,0.00975773]
[1747613765204,0.64848629,106440.0,106430.0,0.00975773]
[1747613765682,0.64848629,106440.0,106430.0,0.00967029]
[1747613766753,0.19731261,106430.0,106420.0,0.0810579]
[1747613766961,0.19731261,106430.0,106420.0,0.08153345]
[1747613768914,0.01039514,106430.0,106420.0,0.71177399]
[1747613769124,0.001,106430.0,106420.0,0.74510732]
[1747613769344,0.20666882,106450.0,106440.0,0.4006]
[1747613769556,0.21606316,106450.0,106440.0,0.4006]
[1747613769769,0.20666952,106450.0,106440.0,0.4006]
[1747613771461,0.20667667,106460.0,106450.0,0.07199399]
[1747613771648,0.21606978,106460.0,106450.0,0.0626]
[1747613771884,0.20667703,106460.0,106450.0,0.0626]
[1747613772864,0.20667703,106460.0,106450.0,0.0636]
[1747613773067,0.002,106460.0,106450.0,0.27026934]
[1747613773284,0.002,106460.0,106450.0,0.3769722]
[1747613773485,0.01139258,106460.0,106450.0,0.36757874]
[1747613773670,0.21804285,106460.0,106450.0,0.1609094]
[1747613774048,0.2086501,106460.0,106450.0,0.0636]
[1747613777863,0.20864957,106460.0,106450.0,0.0636]
[1747613778084,0.002,106460.0,106450.0,0.71885081]
[1747613778295,0.002,106460.0,106450.0,0.73151305]
[1747613778721,0.00240222,106470.0,106460.0,0.23058336]
[1747613778972,0.00240222,106470.0,106460.0,0.39039276]
[1747613779163,0.0187766,106510.0,106490.0,0.01878013]
[1747613779399,0.18777579,106510.0,106500.0,0.0625]
[1747613779604,0.19718291,106500.0,106490.0,0.00585668]
[1747613779812,0.27253731,106500.0,106490.0,0.03675668]
[1747613780014,0.36984671,106500.0,106490.0,0.00585668]
[1747613780243,0.29449231,106500.0,106490.0,0.00585668]
[1747613780466,0.36984671,106500.0,106490.0,0.00585668]
[1747613780880,0.36984671,106500.0,106490.0,0.00785668]
[1747613781091,0.36984671,106500.0,106490.0,0.002]
[1747613781713,0.20661094,106480.0,106470.0,0.0625]
[1747613782112,0.20661094,106480.0,106470.0,0.26913035]
[1747613782324,0.22539301,106480.0,106470.0,0.37230832]
[1747613782548,0.2066113,106480.0,106470.0,0.06836839]
[1747613783051,0.2066113,106480.0,106470.0,0.07036839]
[1747613783291,0.2076113,106480.0,106470.0,0.07036839]
[1747613784166,0.2076113,106480.0,106470.0,0.07336839]
[1747613785473,0.20761077,106480.0,106470.0,0.07336839]
[1747613785704,0.01039064,106480.0,106470.0,0.3773084]
[1747613785942,0.21700105,106480.0,106470.0,0.39609205]
[1747613786181,0.21700105,106480.0,106470.0,0.42002011]
[1747613786447,0.21700105,106480.0,106470.0,0.41062824]
[1747613786705,0.2263923,106480.0,106470.0,0.40123637]
[1747613786916,0.2263923,106480.0,106470.0,0.39184432]
[1747613786917,0.20761006,106480.0,106470.0,0.39184432]
[1747613787131,0.2263923,106480.0,106470.0,0.75062833]
[1747613787779,0.21700166,106480.0,106470.0,0.55047285]
[1747613787985,0.21700166,106480.0,106470.0,0.75710346]
[1747613788195,0.22639309,106480.0,106470.0,0.75710346]
[1747613788386,0.22639309,106480.0,106470.0,0.75710355]
[1747613788688,0.20761138,106480.0,106470.0,0.54108054]
[1747613788833,0.20761138,106480.0,106470.0,0.07984317]
[1747613789039,0.21700237,106480.0,106470.0,0.26121473]
[1747613789264,0.001,106480.0,106470.0,0.40124085]
[1747613789513,0.01039064,106480.0,106470.0,0.40124085]
[1747613789718,0.02917271,106480.0,106470.0,0.37730831]
[1747613789924,0.01978154,106480.0,106470.0,0.41979315]
[1747613790104,0.01039064,106480.0,106470.0,0.41979315]
[1747613790404,0.001,106480.0,106470.0,0.41979315]
[1747613790594,0.001,106480.0,106470.0,0.44080114]
[1747613790935,0.001,106480.0,106470.0,0.4666838]
[1747613791161,0.001,106480.0,106470.0,0.44080114]
[1747613791581,0.01039072,106480.0,106470.0,0.44080114]
[1747613792003,0.001,106480.0,106470.0,0.44080114]
[1747613793099,0.28296552,106480.0,106470.0,0.07983553]
[1747613793308,0.28296552,106480.0,106470.0,0.01733553]
[1747613793535,0.35623889,106480.0,106470.0,0.01086839]
[1747613793746,0.79354829,106480.0,106470.0,0.01086839]
[1747613793993,0.80094829,106480.0,106470.0,0.01086839]
[1747613794212,0.75221577,106480.0,106470.0,0.00786839]
[1747613794432,1.46161577,106480.0,106470.0,0.00786839]
[1747613794643,1.44161577,106480.0,106470.0,0.00135938]
[1747613794862,1.44061577,106480.0,106470.0,0.001]
[1747613795080,1.45161577,106480.0,106470.0,0.002]
[1747613795285,1.69377577,106480.0,106470.0,0.002]
[1747613795476,1.43421577,106480.0,106470.0,0.001]
[1747613795613,1.95929577,106480.0,106470.0,0.002]
[1747613796029,1.95929577,106480.0,106470.0,0.001]
[1747613796478,1.35432052,106480.0,106470.0,0.001]
[1747613796640,1.36886137,106480.0,106470.0,0.001]
[1747613796841,1.88390137,106480.0,106470.0,0.001]
[1747613797340,1.88990137,106480.0,106470.0,0.002]
[1747613798532,1.89990137,106480.0,106470.0,0.002]
[1747613798745,2.01461077,106480.0,106470.0,0.002]
[1747613798953,1.90990137,106480.0,106470.0,0.002]
[1747613799559,0.67246137,106480.0,106470.0,0.002]
[1747613799801,0.57752052,106480.0,106470.0,0.002]
[1747613800206,0.31792052,106480.0,106470.0,0.002]
[1747613800399,0.57756052,106480.0,106470.0,0.002]
[1747613800633,0.22061112,106480.0,106470.0,0.0651]
[1747613800854,0.21121995,106480.0,106470.0,0.0651]
[1747613801063,0.2018287,106480.0,106470.0,0.0651]
[1747613801720,0.21122013,106480.0,106470.0,0.0651]
[1747613801931,0.21122013,106480.0,106470.0,0.0641]
[1747613801932,0.21361138,106480.0,106470.0,0.0641]
[1747613802367,0.21261138,106480.0,106470.0,0.0631]
[1747613802746,0.21361138,106480.0,106470.0,0.0631]
[1747613803223,0.007,106480.0,106470.0,0.52434256]
[1747613803425,0.20421951,106480.0,106470.0,0.72158112]
[1747613803630,0.22300193,106480.0,106470.0,0.5004094]
[1747613804393,0.21361059,106480.0,106470.0,0.5004094]
[1747613804822,0.21800193,106480.0,106470.0,0.5004094]
[1747613805022,0.22100193,106480.0,106470.0,0.5014094]
[1747613805280,0.20221951,106480.0,106470.0,0.5014094]
[1747613805565,0.23039292,106480.0,106470.0,0.0641]
[1747613805724,0.21161121,106480.0,106470.0,0.0641]
[1747613807590,0.20221934,106480.0,106470.0,0.36991844]
[1747613807814,0.21161024,106480.0,106470.0,0.1614094]
[1747613807996,0.22100114,106480.0,106470.0,0.16328762]
[1747613808250,0.22100114,106480.0,106470.0,0.16915736]
[1747613808468,0.23039231,106480.0,106470.0,0.17854967]
[1747613808695,0.21161015,106480.0,106470.0,0.18784634]
[1747613808923,0.22100114,106480.0,106470.0,0.20850909]
[1747613809122,0.23039231,106480.0,106460.0,0.52164463]
[1747613809372,0.23039231,106480.0,106460.0,0.61895403]
[1747613809584,0.23039231,106480.0,106460.0,0.62834661]
[1747613809799,0.005,106480.0,106470.0,0.30157481]
[1747613810037,0.004,106480.0,106470.0,0.32787246]
[1747613811513,0.001,106480.0,106470.0,0.32787246]
[1747613811673,0.001,106480.0,106470.0,0.39197246]
[1747613811884,0.002,106480.0,106470.0,0.39197246]
[1747613812286,0.003,106480.0,106470.0,0.39197246]
[1747613812546,0.002,106480.0,106470.0,0.39197246]
[1747613812940,0.005,106480.0,106470.0,0.39197246]
[1747613813199,0.1928287,106480.0,106470.0,0.1614094]
[1747613813427,0.22100158,106480.0,106470.0,0.07349231]
[1747613813656,0.22100158,106480.0,106470.0,0.0641]
[1747613813867,0.22100149,106480.0,106470.0,0.0641]
[1747613814069,0.21161095,106480.0,106470.0,0.0641]
[1747613814700,0.2210022,106480.0,106470.0,0.0641]
[1747613815023,0.21161095,106480.0,106470.0,0.0641]
[1747613815425,0.2210022,106480.0,106470.0,0.0641]
[1747613815871,0.23039363,106480.0,106470.0,0.0641]
[1747613816084,0.21161138,106480.0,106470.0,0.0641]
[1747613816989,0.21161041,106480.0,106470.0,0.07349222]
[1747613817201,0.23039283,106480.0,106470.0,0.0641]
[1747613817627,0.22100211,106480.0,106470.0,0.0641]
[1747613817767,0.21161112,106480.0,106470.0,0.0641]
[1747613818400,0.20222004,106480.0,106470.0,0.0641]
[1747613819041,0.1928287,106480.0,106470.0,0.0641]
[1747613819495,0.19470699,106480.0,106470.0,0.0333]
[1747613819705,0.19723848,106470.0,106460.0,0.0639]
[1747613819911,0.20663053,106470.0,106460.0,0.0639]
[1747613820126,0.20662999,106470.0,106460.0,0.0639]
[1747613820346,0.21602221,106470.0,106460.0,0.0639]
[1747613821101,0.21602221,106470.0,106440.0,0.25733152]
[1747613821102,0.20666881,106450.0,106440.0,0.25733152]
[1747613821328,0.20666864,106450.0,106440.0,0.36403588]
[1747613821539,0.21606228,106450.0,106440.0,0.35464092]
[1747613821745,0.20666952,106450.0,106440.0,0.32123152]
[1747613822127,0.20666952,106450.0,106440.0,0.06976799]
[1747613822555,0.20666846,106450.0,106440.0,0.06976799]
[1747613822747,0.20666837,106450.0,106440.0,0.07164678]
[1747613822954,0.22545591,106450.0,106440.0,0.06976799]
[1747613823176,0.21706201,106450.0,106440.0,0.08616295]
[1747613823380,0.22645582,106450.0,106440.0,0.07676799]
[1747613823586,0.22645582,106450.0,106440.0,0.08616295]
[1747613823789,0.001,106450.0,106440.0,0.75597506]
[1747613823987,0.001,106450.0,106440.0,0.7490963]
[1747613824923,0.20766881,106450.0,106440.0,0.50907739]
[1747613825150,0.19827509,106450.0,106440.0,0.53519838]
[1747613825358,0.18888163,106450.0,106440.0,0.73249227]
[1747613825562,0.198275,106450.0,106440.0,0.73249227]
[1747613825813,0.198275,106450.0,106440.0,0.74188679]
[1747613826220,0.198275,106450.0,106440.0,0.73249227]
[1747613826452,0.20766917,106450.0,106440.0,0.41909951]
[1747613826659,0.20766917,106450.0,106440.0,0.42209951]
[1747613827510,0.21706325,106450.0,106440.0,0.42209951]
[1747613828139,0.21706325,106450.0,106440.0,0.08209951]
[1747613828371,0.21706325,106450.0,106440.0,0.07476799]
[1747613828655,0.20766961,106450.0,106440.0,0.01086799]
[1747613828879,0.30497901,106450.0,106440.0,0.01086799]
[1747613829109,0.90405901,106450.0,106440.0,0.01086799]
[1747613829329,0.96675901,106450.0,106440.0,0.01086799]
[1747613829785,0.96675901,106450.0,106440.0,0.002]
[1747613830001,0.59999406,106440.0,106430.0,0.00733152]
[1747613830228,0.66600346,106440.0,106430.0,0.00733152]
[1747613830447,0.63460346,106440.0,106430.0,0.00733152]
[1747613830849,0.77295786,106440.0,106430.0,0.00733152]
[1747613831513,0.19731261,106430.0,106420.0,0.0160579]
[1747613831732,0.29462201,106430.0,106420.0,0.01653345]
[1747613833304,0.20668805,106440.0,106420.0,0.22326105]
[1747613833555,0.19729362,106440.0,106430.0,0.4027]
[1747613833776,0.20668893,106440.0,106430.0,0.4027]
[1747613834000,0.20668893,106440.0,106430.0,0.0327]
[1747613834441,0.19731261,106430.0,106420.0,0.08073345]
[1747613834667,0.29562201,106430.0,106420.0,0.01653345]
[1747613835106,0.29462201,106430.0,106420.0,0.01653345]
[1747613835334,0.63462201,106430.0,106420.0,0.01653345]
[1747613835557,0.29462201,106430.0,106420.0,0.01653345]
[1747613835781,0.54858201,106430.0,106420.0,0.01653345]
[1747613836480,0.54958201,106430.0,106420.0,0.01653345]
[1747613836724,0.54115838,106430.0,106420.0,0.01653345]
[1747613836946,0.20348023,106430.0,106420.0,0.01653345]
[1747613837168,0.2034804,106430.0,106420.0,0.08193345]
[1747613837695,0.01039514,106430.0,106420.0,0.27926468]
[1747613837926,0.01039514,106430.0,106420.0,0.28866105]
[1747613837927,0.01039522,106430.0,106420.0,0.28866105]
[1747613838144,0.001,106430.0,106420.0,0.74476302]
[1747613838360,0.003,106430.0,106420.0,0.74476302]
[1747613838567,0.21608275,106440.0,106430.0,0.26271269]
[1747613838785,0.22547753,106440.0,106430.0,0.0654]
[1747613838996,0.20668867,106440.0,106430.0,0.0654]
[1747613839596,0.20668867,106440.0,106430.0,0.0326]
[1747613839927,0.19731269,106430.0,106420.0,0.08013345]
[1747613840570,0.19731269,106430.0,106420.0,0.08201267]
[1747613840819,0.19731269,106430.0,106420.0,0.08013345]
[1747613841421,0.19731269,106430.0,106420.0,0.01653345]
[1747613841678,0.29462209,106430.0,106420.0,0.01653345]
[1747613841887,0.29562209,106430.0,106420.0,0.01753345]
[1747613843910,0.29462209,106430.0,106420.0,0.01653345]
[1747613844354,0.29762209,106430.0,106420.0,0.01653345]
[1747613845477,0.71962567,106430.0,106420.0,0.01653345]
[1747613845698,0.69882209,106430.0,106420.0,0.01653345]
[1747613846150,0.71336294,106430.0,106420.0,0.01653345]
[1747613846353,0.72436294,106430.0,106420.0,0.01653345]
[1747613846832,0.73236294,106430.0,106420.0,0.00902181]
[1747613847052,0.82867234,106430.0,106420.0,0.00902181]
[1747613847272,0.83467234,106430.0,106420.0,0.00151017]
[1747613847549,0.83067234,106430.0,106420.0,0.00151017]
[1747613847770,0.56928771,106410.0,106400.0,0.00719149]
[1747613847956,1.33095711,106410.0,106400.0,0.00733348]
[1747613848612,1.36105711,106410.0,106400.0,0.00733348]
[1747613849044,1.31041626,106410.0,106400.0,0.00733348]
[1747613849261,1.05177626,106410.0,106400.0,0.00733348]
[1747613849469,1.31097626,106410.0,106400.0,0.00733348]
[1747613850088,1.05177626,106410.0,106400.0,0.0071588]
[1747613850299,1.63301626,106410.0,106400.0,0.0071588]
[1747613850742,1.60481626,106410.0,106400.0,0.0071588]
[1747613851017,1.57361626,106410.0,106400.0,0.0071588]
[1747613851591,1.05577626,106410.0,106400.0,0.0071588]
[1747613851837,0.71577626,106410.0,106400.0,0.0071588]
[1747613852031,0.61846686,106410.0,106400.0,0.0695588]
[1747613852678,0.60906943,106410.0,106400.0,0.0695588]
[1747613852895,0.21274721,106410.0,106400.0,0.0695588]
[1747613853330,0.31005661,106410.0,106400.0,0.0071588]
[1747613857221,0.68195661,106410.0,106400.0,0.0071588]
[1747613857446,0.65005661,106410.0,106400.0,0.0071588]
[1747613858775,0.90869661,106410.0,106400.0,0.0071588]
[1747613859244,0.94059661,106410.0,106400.0,0.0071588]
[1747613859899,1.16121661,106410.0,106400.0,0.0071588]
[1747613860118,0.90269661,106410.0,106400.0,0.0071588]
[1747613860338,0.71635661,106410.0,106400.0,0.0071588]
[1747613860583,1.17121661,106410.0,106400.0,0.0071588]
[1747613861885,1.23311661,106410.0,106400.0,0.0071588]
[1747613862110,1.24765746,106410.0,106400.0,0.0071588]
[1747613862770,1.24365746,106410.0,106400.0,0.0071588]
[1747613863021,1.24165746,106410.0,106400.0,0.0081588]
[1747613863529,1.24865746,106410.0,106400.0,0.0081588]
[1747613864557,1.35503959,106410.0,106400.0,0.0081588]
[1747613864755,2.05343959,106410.0,106400.0,0.0081588]
[1747613865181,1.95705746,106410.0,106400.0,0.0081588]
[1747613866171,0.19747907,106340.0,106330.0,0.01454085]
[1747613866402,0.18807598,106340.0,106330.0,0.73292713]
[1747613866616,0.18807598,106340.0,106330.0,0.74233137]
[1747613866902,0.21628981,106350.0,106340.0,0.00940379]
[1747613867126,0.21628981,106350.0,106330.0,0.75173455]
[1747613867349,0.18907598,106340.0,106330.0,1.0809274]
[1747613867561,0.002,106340.0,106330.0,1.1211714]
[1747613868424,0.001,106340.0,106330.0,1.1211714]
[1747613868609,0.23509519,106350.0,106330.0,1.1131714]
[1747613868817,0.22569237,106350.0,106330.0,1.12257457]
[1747613869013,0.22669237,106350.0,106340.0,0.00888053]
[1747613869218,0.22669237,106350.0,106340.0,0.07050454]
[1747613869423,0.23509519,106350.0,106340.0,0.0630654]
[1747613869824,0.20888797,106350.0,106340.0,0.0618]
[1747613870038,0.21729079,106350.0,106340.0,0.0618]
[1747613870441,0.20788823,106350.0,106340.0,0.0618]
[1747613870716,0.1994855,106350.0,106340.0,0.0678]
[1747613871410,0.1994855,106350.0,106340.0,0.07306796]
[1747613872261,0.19008268,106350.0,106340.0,0.07306796]
[1747613872477,0.002,106350.0,106340.0,0.74308518]
[1747613872686,0.002,106350.0,106340.0,0.75060778]
[1747613874028,0.05,106400.0,106390.0,0.03969876]
[1747613874233,0.25676593,106400.0,106390.0,0.37217961]
[1747613874475,0.33212077,106400.0,106390.0,0.0636]
[1747613874922,0.33212077,106400.0,106390.0,0.0303]
[1747613875565,0.33212077,106400.0,106390.0,0.08362615]
[1747613875779,0.33212077,106400.0,106390.0,0.0621]
[1747613875999,0.33212077,106400.0,106390.0,0.0631]
[1747613876444,0.21620471,106380.0,106360.0,0.22559596]
[1747613876657,0.21620471,106380.0,106370.0,0.00940105]
[1747613876870,0.21620471,106380.0,106370.0,0.01880219]
[1747613877083,0.21620471,106380.0,106370.0,0.00940114]
[1747613877314,0.19742336,106370.0,106360.0,0.09745147]
[1747613877533,0.19742336,106370.0,106360.0,0.02106021]
[1747613877534,0.22562599,106370.0,106360.0,0.02106021]
[1747613877746,0.2256259,106370.0,106360.0,0.02106021]
[1747613877972,0.18900526,106380.0,106360.0,0.34401674]
[1747613878185,0.1984049,106380.0,106370.0,0.21622565]
[1747613878445,0.20780445,106380.0,106370.0,0.21622583]
[1747613878650,0.22560443,106380.0,106370.0,0.19742398]
[1747613878880,0.2350046,106380.0,106370.0,0.00940114]
[1747613879105,0.2360054,106380.0,106360.0,0.33121295]
[1747613879323,0.2068238,106370.0,106360.0,0.33121383]
[1747613879558,0.2068238,106370.0,106360.0,0.40691727]
[1747613879775,0.19842372,106370.0,106360.0,0.08696021]
[1747613880020,0.20782424,106370.0,106360.0,0.3835923]
[1747613880232,0.20682469,106370.0,106360.0,0.02106021]
[1747613880458,0.20682469,106370.0,106360.0,0.02406021]
[1747613880671,0.20682469,106370.0,106360.0,0.02806021]
[1747613880881,0.1974239,106370.0,106360.0,0.02506021]
[1747613881096,0.1984239,106370.0,106360.0,0.02806021]
[1747613881560,0.001,106370.0,106360.0,0.43223822]
[1747613881744,0.001,106370.0,106360.0,0.77035794]
[1747613882405,0.001,106370.0,106360.0,0.76635794]
[1747613882860,0.001,106370.0,106360.0,0.76735794]
[1747613883309,0.21619958,106390.0,106380.0,0.0645]
[1747613883829,0.22559895,106390.0,106380.0,0.0645]
[1747613884235,0.20682424,106370.0,106360.0,0.39441077]
[1747613884460,0.19742328,106370.0,106360.0,0.36960689]
[1747613884701,0.01880078,106370.0,106360.0,0.39781173]
[1747613884907,0.19742328,106370.0,106360.0,0.38951032]
[1747613885119,0.21620462,106380.0,106370.0,0.0643]
[1747613885326,0.22560479,106380.0,106370.0,0.0643]
[1747613885539,0.19742381,106370.0,106360.0,0.15066961]
[1747613885739,0.20682478,106370.0,106360.0,0.02106021]
[1747613886223,0.20782442,106370.0,106360.0,0.02406021]
[1747613886448,0.21722539,106370.0,106360.0,0.02406021]
[1747613886657,0.22662653,106370.0,106360.0,0.08996021]
[1747613887329,0.22662653,106370.0,106360.0,0.09596021]
[1747613887330,0.22762653,106370.0,106360.0,0.09596021]
[1747613887545,0.01140052,106370.0,106360.0,0.30468465]
[1747613887763,0.19942345,106370.0,106360.0,0.30280443]
[1747613887968,0.20882415,106370.0,106360.0,0.30280461]
[1747613888287,0.20882415,106370.0,106360.0,0.09596021]
[1747613888500,0.2088246,106370.0,106360.0,0.03594558]
[1747613888708,0.2088246,106370.0,106360.0,0.01502744]
[1747613888908,0.1994239,106370.0,106360.0,0.01502744]
[1747613889312,0.22762608,106370.0,106360.0,0.04622744]
[1747613889734,0.002,106370.0,106360.0,0.28545188]
[1747613889939,0.19942345,106370.0,106360.0,0.27416999]
[1747613890187,0.20882415,106370.0,106360.0,0.27396345]
[1747613890429,0.21822503,106370.0,106360.0,0.0765209]
[1747613890641,0.20882415,106370.0,106360.0,0.08592284]
[1747613890820,0.21822494,106370.0,106360.0,0.0765209]
[1747613890964,0.21822494,106370.0,106360.0,0.08592284]
[1747613891175,0.19942336,106370.0,106360.0,0.28524547]
[1747613891381,0.002,106370.0,106360.0,0.39947778]
[1747613891585,0.002,106370.0,106360.0,0.75401863]
[1747613891801,0.002,106370.0,106360.0,1.19372631]
[1747613893216,0.002,106370.0,106360.0,0.78002631]
[1747613894321,0.2088246,106370.0,106360.0,0.16933798]
[1747613894536,0.2088246,106370.0,106360.0,0.0148209]
[1747613894755,0.2401246,106370.0,106360.0,0.0148209]
[1747613894978,0.2714246,106370.0,106360.0,0.0148209]
[1747613895189,0.5297046,106370.0,106360.0,0.0148209]
[1747613895631,0.4661046,106370.0,106360.0,0.00293553]
[1747613895851,0.4982046,106370.0,106360.0,0.00293553]
[1747613896037,0.5305046,106370.0,106360.0,0.00793553]
[1747613896250,0.626814,106370.0,106360.0,0.005]
[1747613896700,0.20686349,106350.0,106340.0,0.01438057]
[1747613896887,0.20686349,106350.0,106340.0,0.01485496]
[1747613897563,0.20686349,106350.0,106340.0,0.02073551]
[1747613897993,0.20786349,106350.0,106340.0,0.02273551]
[1747613898787,0.20786349,106350.0,106340.0,0.52273551]
[1747613898990,0.20886349,106350.0,106340.0,0.52773551]
[1747613899628,0.19946102,106350.0,106340.0,0.52773551]
[1747613900795,0.23076102,106350.0,106340.0,0.52773551]
[1747613901012,0.26146102,106350.0,106340.0,0.52185496]
[1747613902125,0.26146102,106350.0,106340.0,0.50847439]
[1747613902382,0.23076102,106350.0,106340.0,0.50847439]
[1747613903041,0.26266102,106350.0,106340.0,0.50847439]
[1747613903251,0.35997042,106350.0,106340.0,0.50847439]
[1747613903695,0.23076102,106350.0,106340.0,0.50847439]
[1747613903918,0.61883042,106350.0,106340.0,0.50847439]
[1747613904363,0.61783042,106350.0,106340.0,0.50247439]
[1747613904577,0.61883042,106350.0,106340.0,0.50647439]
[1747613904791,0.61783042,106350.0,106340.0,0.50447439]
[1747613905280,0.19846102,106350.0,106340.0,0.50447439]
[1747613905498,0.19846049,106350.0,106340.0,1.00638379]
[1747613905728,0.23607089,106350.0,106340.0,1.00638379]
[1747613905943,0.2266686,106350.0,106340.0,0.63418379]
[1747613906156,0.2276686,106350.0,106340.0,0.63418379]
[1747613906369,0.44382755,106350.0,106340.0,0.50447439]
[1747613906581,0.36847315,106350.0,106340.0,0.50447439]
[1747613906798,0.20886375,106350.0,106340.0,0.50447439]
[1747613907005,0.19946111,106350.0,106340.0,0.50447439]
[1747613908051,0.24946111,106350.0,106340.0,0.50447439]
[1747613908700,0.25886358,106350.0,106340.0,0.50447439]
[1747613908922,0.27766869,106350.0,106340.0,0.50447439]
[1747613909124,0.2682664,106350.0,106340.0,0.50447439]
[1747613909347,0.25886384,106350.0,106340.0,0.50447439]
[1747613909786,0.052,106350.0,106340.0,1.23601077]
[1747613910003,0.24005829,106350.0,106340.0,1.25481368]
[1747613910215,0.24005829,106350.0,106340.0,1.23086939]
[1747613910216,0.2588626,106350.0,106340.0,1.23086939]
[1747613910432,0.2494604,106350.0,106340.0,1.24027292]
[1747613910642,0.24005829,106350.0,106340.0,1.24967636]
[1747613910860,0.25886278,106350.0,106340.0,1.03099396]
[1747613911075,0.25886384,106350.0,106340.0,0.84207856]
[1747613911313,0.25886384,106350.0,106340.0,0.50207856]
[1747613911539,0.25886384,106350.0,106340.0,0.50794789]
[1747613913311,0.25886384,106350.0,106340.0,0.50207856]
[1747613914177,0.25886366,106350.0,106340.0,0.50207856]
[1747613914403,0.24946102,106350.0,106340.0,0.50207856]
[1747613915283,0.052,106350.0,106340.0,1.21077109]
[1747613915499,0.052,106350.0,106340.0,1.21664466]
[1747613915722,0.26826507,106350.0,106340.0,1.22604819]
[1747613915939,0.07080431,106350.0,106340.0,1.22604819]
[1747613916159,0.07080431,106350.0,106340.0,1.23545137]
[1747613916371,0.052,106350.0,106340.0,1.23545137]
[1747613917066,0.052,106350.0,106340.0,1.24999222]
[1747613919684,0.052,106350.0,106340.0,1.27596029]
[1747613922179,0.052,106350.0,106340.0,1.30416429]
[1747613922994,0.052,106350.0,106340.0,1.2879866]
[1747613924871,0.052,106350.0,106340.0,1.31396158]
[1747613925294,0.052,106350.0,106340.0,1.2879866]
[1747613925498,0.00501537,106350.0,106340.0,1.31396167]
[1747613925707,0.30096245,106380.0,106370.0,0.53742398]
[1747613925917,0.30096245,106380.0,106370.0,0.55269843]
[1747613926147,0.30096245,106380.0,106370.0,0.54329755]
[1747613926343,0.30096245,106380.0,106370.0,0.55269852]
[1747613926751,0.08475386,106380.0,106370.0,0.55269852]
[1747613927007,0.30295883,106380.0,106370.0,0.56209931]
[1747613927171,0.31735909,106380.0,106370.0,0.5620994]
[1747613927383,0.29855866,106380.0,106370.0,0.58090089]
[1747613927739,0.007,106380.0,106370.0,0.67820976]
[1747613927968,0.007,106380.0,106370.0,1.16885061]
[1747613928196,0.005,106380.0,106370.0,1.16885061]
[1747613928631,0.006,106380.0,106370.0,1.16885061]
[1747613928839,0.006,106380.0,106370.0,1.20438295]
[1747613928840,0.001,106380.0,106370.0,1.20438295]
[1747613929028,0.02819618,106390.0,106380.0,0.55620497]
[1747613929246,0.02819618,106390.0,106380.0,0.65351437]
[1747613929656,0.02819618,106390.0,106380.0,0.65938794]
[1747613930316,0.01087967,106390.0,106380.0,0.66038794]
[1747613930565,0.00148109,106390.0,106380.0,0.69348794]
[1747613930788,0.01087985,106390.0,106380.0,0.69078794]
[1747613931005,0.00148109,106390.0,106380.0,0.69078794]
[1747613931143,0.00148109,106390.0,106380.0,0.72388794]
[1747613931357,0.01087985,106390.0,106380.0,0.72588794]
[1747613931567,0.01087967,106390.0,106380.0,0.69278794]
[1747613932008,0.02027834,106390.0,106380.0,0.69278794]
[1747613932221,0.00148109,106390.0,106380.0,0.69278794]
[1747613932425,0.01087976,106390.0,106380.0,0.72468794]
[1747613932813,0.2176653,106390.0,106380.0,0.66238794]
[1747613933018,0.02967762,106390.0,106380.0,0.66238794]
[1747613933220,0.2082669,106390.0,106380.0,0.44618297]
[1747613933428,0.2082669,106390.0,106380.0,0.34887357]
[1747613934254,0.2082669,106390.0,106380.0,0.35827374]
[1747613934458,0.2082669,106390.0,106380.0,0.34887357]
[1747613935276,0.2082669,106390.0,106380.0,0.35827365]
[1747613935516,0.2082669,106390.0,106380.0,0.35827374]
[1747613936154,0.2082669,106390.0,106380.0,0.36767382]
[1747613936594,0.2394669,106390.0,106380.0,0.34887357]
[1747613936837,0.2394669,106390.0,106380.0,0.35827374]
[1747613937057,0.23006788,106390.0,106380.0,0.35827383]
[1747613937471,0.23006788,106390.0,106380.0,0.367674]
[1747613937881,0.00148109,106390.0,106380.0,0.5744788]
[1747613938117,0.00148109,106390.0,106380.0,0.6717882]
[1747613938323,0.01087967,106390.0,106380.0,0.6717882]
[1747613938527,0.02027843,106390.0,106380.0,0.6717882]
[1747613938746,0.02967727,106390.0,106380.0,0.6717882]
[1747613939587,0.00148109,106390.0,106380.0,0.6717882]
[1747613940582,0.01087985,106390.0,106380.0,0.6717882]
[1747613940784,0.00148109,106390.0,106380.0,0.6717882]
[1747613940998,0.01087976,106390.0,106380.0,0.6717882]
[1747613941194,0.02027869,106390.0,106380.0,0.6717882]
[1747613941393,0.02027852,106390.0,106380.0,0.6717882]
[1747613941617,0.02967745,106390.0,106380.0,0.6717882]
[1747613941824,0.02027852,106390.0,106380.0,0.6717882]
[1747613942021,0.01087976,106390.0,106380.0,0.6717882]
[1747613942223,0.00148109,106390.0,106380.0,0.6717882]
[1747613942378,0.01087976,106390.0,106380.0,0.6717882]
[1747613942582,0.00148109,106390.0,106380.0,0.6717882]
[1747613943018,0.01087967,106390.0,106380.0,0.6717882]
[1747613943251,0.00148109,106390.0,106380.0,0.6717882]
[1747613943826,0.08623416,106390.0,106380.0,0.6717882]
[1747613944174,0.00148109,106390.0,106380.0,0.67912354]
[1747613944427,0.01087967,106390.0,106380.0,0.67912354]
[1747613944628,0.00148109,106390.0,106380.0,0.67912354]
[1747613944996,0.00148109,106390.0,106380.0,0.69366439]
[1747613945198,0.00148109,106390.0,106380.0,0.75476439]
[1747613945808,0.00148109,106390.0,106380.0,1.16846439]
[1747613947689,0.00148109,106390.0,106380.0,1.10736439]
[1747613949749,0.00148109,106390.0,106380.0,1.11715477]
[1747613951436,0.00148109,106390.0,106380.0,1.18145477]
[1747613951625,0.00148109,106390.0,106380.0,1.20742304]
[1747613952341,0.9273601,106440.0,106430.0,0.22549889]
[1747613952342,0.0753544,106440.0,106430.0,0.22549889]
[1747613952555,0.0942873,106440.0,106430.0,0.32280829]
[1747613952769,0.0942873,106440.0,106430.0,0.32868186]
[1747613952994,0.11307651,106440.0,106430.0,0.66868186]
[1747613953210,0.31037066,106440.0,106430.0,0.69827162]
[1747613953424,0.31037075,106440.0,106430.0,0.69827162]
[1747613953637,0.31037066,106440.0,106430.0,0.69827162]
[1747613953812,0.03772211,106440.0,106430.0,0.69827162]
[1747613954016,0.23501679,106440.0,106430.0,0.69827162]